{"text_format":"1","workbook":"xlsx","n_sheets":9,"sheets":["Dagontvangsten","Omzet 2023","Data","samenvatting","Dagontvangsten Januari 23 ","Dagontvangsten Februari 23 ","Dagontvangsten Maart 23 ","Dagontvangsten April 23","Blanco sjabloon dagontvansten"],"not_rendered":{"charts":0,"images":5,"macros":1,"external_links":0,"defined_names":0,"comments":0,"pivot_tables":1},"unopened":[],"bounds":{"document_bytes":16777216,"sheet_cells":100000,"rows_first":2000,"rows_last":500,"rows_between":2000,"halvings":0,"cell_chars":16384,"cell_head_chars":4096},"cells_cut":0,"cells_raw":0,"read":"whole","date_system":"1900"}

{"sheet":"Dagontvangsten","index":0,"n_rows":101,"n_cols":9,"rows_kept":101,"cut":false,"hidden":false,"merged":[]}
[]
[null," DAGONTVANGSTEN"]
[]
[null,null,null,"KAREN",null,null,"KATHELIJN"]
[null,null,null,"Kostprijs",null,null,"Kostprijs"]
["maand","datum","omschrijving","Behandeling","Producten","Inlevering cadeaubon","Behandeling2","Producten3","Inlevering cadeaubon4"]
[{"$f":"Tabel2[[#This Row],[datum]]","v":"2023-04-29"},"2023-04-29","pedicure",null,null,null,25]
[{"$f":"Tabel2[[#This Row],[datum]]","v":"2023-04-29"},"2023-04-29","pedicure",null,null,null,25]
[{"$f":"Tabel2[[#This Row],[datum]]","v":"2023-04-29"},"2023-04-29","pedicure",null,null,null,25]
[{"$f":"Tabel2[[#This Row],[datum]]","v":"2023-04-29"},"2023-04-29","epilatie wenkbrauwen",null,null,null,11]
[{"$f":"Tabel2[[#This Row],[datum]]","v":"2023-04-29"},"2023-04-29","pedicure",null,null,null,25]
[{"$f":"Tabel2[[#This Row],[datum]]","v":"2023-04-29"},"2023-04-29","epilatie oksels",null,null,null,14]
[{"$f":"Tabel2[[#This Row],[datum]]","v":"2023-04-29"},"2023-04-29","pedicure",null,null,null,25]
[{"$f":"Tabel2[[#This Row],[datum]]","v":"2023-04-29"},"2023-04-29","luxe microdermabrasie + epilatie ",null,null,null,106.5]
[{"$f":"Tabel2[[#This Row],[datum]]","v":"2023-04-29"},"2023-04-29","pedicure + gellak",null,null,null,47]
[{"$f":"Tabel2[[#This Row],[datum]]","v":"2023-04-29"},"2023-04-29","pedicure",null,null,null,25]
[{"$f":"Tabel2[[#This Row],[datum]]","v":"2023-04-26"},"2023-04-26","rim ram",73.5]
[{"$f":"Tabel2[[#This Row],[datum]]","v":"2023-04-26"},"2023-04-26","rim ram",131]
[{"$f":"Tabel2[[#This Row],[datum]]","v":"2023-04-26"},"2023-04-26","rim ram",69]
[{"$f":"Tabel2[[#This Row],[datum]]","v":"2023-04-26"},"2023-04-26","rim ram",33]
[{"$f":"Tabel2[[#This Row],[datum]]","v":"2023-04-26"},"2023-04-26","pedicure + gellak",47]
[{"$f":"Tabel2[[#This Row],[datum]]","v":"2023-04-26"},"2023-04-26","gelnagels",38.5]
[{"$f":"Tabel2[[#This Row],[datum]]","v":"2023-04-22"},"2023-04-22","oksels",14]
[{"$f":"Tabel2[[#This Row],[datum]]","v":"2023-04-22"},"2023-04-22","gelnagels",38.5]
[{"$f":"Tabel2[[#This Row],[datum]]","v":"2023-04-22"},"2023-04-22","rim ram",177]
[{"$f":"Tabel2[[#This Row],[datum]]","v":"2023-04-22"},"2023-04-22","pedicure + gellak",47]
[{"$f":"Tabel2[[#This Row],[datum]]","v":"2023-04-22"},"2023-04-22","pedicure",25]
[{"$f":"Tabel2[[#This Row],[datum]]","v":"2023-04-21"},"2023-04-21","rim ram",45]
[{"$f":"Tabel2[[#This Row],[datum]]","v":"2023-04-21"},"2023-04-21","pedicure + gellak",47]
[{"$f":"Tabel2[[#This Row],[datum]]","v":"2023-04-21"},"2023-04-21","pedicure",25]
[{"$f":"Tabel2[[#This Row],[datum]]","v":"2023-04-21"},"2023-04-21","gelnagels",38.5]
[{"$f":"Tabel2[[#This Row],[datum]]","v":"2023-04-21"},"2023-04-21","gelnagels",38.5]
[{"$f":"Tabel2[[#This Row],[datum]]","v":"2023-04-19"},"2023-04-19","rim ram",23]
[{"$f":"Tabel2[[#This Row],[datum]]","v":"2023-04-19"},"2023-04-19","gelnagels",38.5]
[{"$f":"Tabel2[[#This Row],[datum]]","v":"2023-04-19"},"2023-04-19","gellak",28.5]
[{"$f":"Tabel2[[#This Row],[datum]]","v":"2023-04-19"},"2023-04-19","rim ram",58]
[{"$f":"Tabel2[[#This Row],[datum]]","v":"2023-04-19"},"2023-04-19","rim ram",45.5]
[{"$f":"Tabel2[[#This Row],[datum]]","v":"2023-04-19"},"2023-04-19","inleveren cadeaubon",null,null,60]
[{"$f":"Tabel2[[#This Row],[datum]]","v":"2023-04-19"},"2023-04-19","verkoop",null,42]
[{"$f":"Tabel2[[#This Row],[datum]]","v":"2023-04-19"},"2023-04-19","rim ram",55]
[{"$f":"Tabel2[[#This Row],[datum]]","v":"2023-04-15"},"2023-04-15","rim ram",171]
[{"$f":"Tabel2[[#This Row],[datum]]","v":"2023-04-15"},"2023-04-15","pedicure",25]
[{"$f":"Tabel2[[#This Row],[datum]]","v":"2023-04-15"},"2023-04-15","gelnagels",38.5]
[{"$f":"Tabel2[[#This Row],[datum]]","v":"2023-04-15"},"2023-04-15","rim ram",71]
[{"$f":"Tabel2[[#This Row],[datum]]","v":"2023-04-15"},"2023-04-15","massage rug",null,null,null,35]
[{"$f":"Tabel2[[#This Row],[datum]]","v":"2023-04-15"},"2023-04-15","gelaatsverzorging",null,null,null,50]
[{"$f":"Tabel2[[#This Row],[datum]]","v":"2023-04-15"},"2023-04-15","epilatie bovenlip",null,null,null,11.5]
[{"$f":"Tabel2[[#This Row],[datum]]","v":"2023-04-15"},"2023-04-15","pedicure",null,null,null,25]
[{"$f":"Tabel2[[#This Row],[datum]]","v":"2023-04-15"},"2023-04-15","gelaatsverzorging + microdermabrasie",null,null,null,65]
[{"$f":"Tabel2[[#This Row],[datum]]","v":"2023-04-15"},"2023-04-15","kleuren wenkbrauw",null,null,null,12]
[{"$f":"Tabel2[[#This Row],[datum]]","v":"2023-04-15"},"2023-04-15","pedicure",null,null,null,25]
[{"$f":"Tabel2[[#This Row],[datum]]","v":"2023-04-15"},"2023-04-15","pedicure",null,null,null,25]
[{"$f":"Tabel2[[#This Row],[datum]]","v":"2023-04-15"},"2023-04-15","epilatie wenkbrauwen",null,null,null,11]
[{"$f":"Tabel2[[#This Row],[datum]]","v":"2023-04-15"},"2023-04-15","epilatie bovenlip",null,null,null,11.5]
[{"$f":"Tabel2[[#This Row],[datum]]","v":"2023-04-15"},"2023-04-15","epilatie oksels",null,null,null,14]
[{"$f":"Tabel2[[#This Row],[datum]]","v":"2023-04-15"},"2023-04-15","gelaatsverzorging",null,null,null,50]
[{"$f":"Tabel2[[#This Row],[datum]]","v":"2023-04-15"},"2023-04-15","epilatie bovenlip",null,null,null,11.5]
[{"$f":"Tabel2[[#This Row],[datum]]","v":"2023-04-15"},"2023-04-15","gelaatsverzorging",null,null,null,50]
[{"$f":"Tabel2[[#This Row],[datum]]","v":"2023-04-15"},"2023-04-15","epilatie bovenlip",null,null,null,11.5]
[{"$f":"Tabel2[[#This Row],[datum]]","v":"2023-04-15"},"2023-04-15","pedicure",null,null,null,25]
[{"$f":"Tabel2[[#This Row],[datum]]","v":"2023-04-14"},"2023-04-14","verkoop",null,55]
[{"$f":"Tabel2[[#This Row],[datum]]","v":"2023-04-14"},"2023-04-14","rim ram",59]
[{"$f":"Tabel2[[#This Row],[datum]]","v":"2023-04-12"},"2023-04-12","cadeaubon",50]
[{"$f":"Tabel2[[#This Row],[datum]]","v":"2023-04-12"},"2023-04-12","gelnagels",38.5]
[{"$f":"Tabel2[[#This Row],[datum]]","v":"2023-04-12"},"2023-04-12","gelnagels",38.5]
[{"$f":"Tabel2[[#This Row],[datum]]","v":"2023-04-12"},"2023-04-12","rim ram",84.5]
[{"$f":"Tabel2[[#This Row],[datum]]","v":"2023-04-12"},"2023-04-12","pedicure + gellak",47]
[{"$f":"Tabel2[[#This Row],[datum]]","v":"2023-04-12"},"2023-04-12","gelnagels",38.5]
[{"$f":"Tabel2[[#This Row],[datum]]","v":"2023-04-12"},"2023-04-12","pedicure ",25]
[{"$f":"Tabel2[[#This Row],[datum]]","v":"2023-04-12"},"2023-04-12","rim ram",29]
[{"$f":"Tabel2[[#This Row],[datum]]","v":"2023-04-12"},"2023-04-12","pedicure",25]
[{"$f":"Tabel2[[#This Row],[datum]]","v":"2023-04-08"},"2023-04-08","massage rug",null,null,null,35]
[{"$f":"Tabel2[[#This Row],[datum]]","v":"2023-04-08"},"2023-04-08","epilatie wenkbrauwen",null,null,null,11]
[{"$f":"Tabel2[[#This Row],[datum]]","v":"2023-04-08"},"2023-04-08","pedicure",null,null,null,25]
[{"$f":"Tabel2[[#This Row],[datum]]","v":"2023-04-08"},"2023-04-08","gelaatsverzorging",null,null,null,50]
[{"$f":"Tabel2[[#This Row],[datum]]","v":"2023-04-08"},"2023-04-08","gelaatsverzorging + microdermabrasie",null,null,null,65]
[{"$f":"Tabel2[[#This Row],[datum]]","v":"2023-04-08"},"2023-04-08","pedicure",null,null,null,25]
[{"$f":"Tabel2[[#This Row],[datum]]","v":"2023-04-08"},"2023-04-08","pedicure",null,null,null,25]
[{"$f":"Tabel2[[#This Row],[datum]]","v":"2023-04-08"},"2023-04-08","pedicure",null,null,null,25]
[{"$f":"Tabel2[[#This Row],[datum]]","v":"2023-04-08"},"2023-04-08","pedicure + gellak",null,null,null,47]
[{"$f":"Tabel2[[#This Row],[datum]]","v":"2023-04-08"},"2023-04-08","verkoop",null,null,null,null,55]
[{"$f":"Tabel2[[#This Row],[datum]]","v":"2023-04-01"},"2023-04-01","rim ram",108]
[{"$f":"Tabel2[[#This Row],[datum]]","v":"2023-04-01"},"2023-04-01","rim ram",45]
[{"$f":"Tabel2[[#This Row],[datum]]","v":"2023-04-01"},"2023-04-01","rim ram",36.5]
[{"$f":"Tabel2[[#This Row],[datum]]","v":"2023-04-01"},"2023-04-01","gellak",null,null,null,28.5]
[{"$f":"Tabel2[[#This Row],[datum]]","v":"2023-04-01"},"2023-04-01","pedicure",null,null,null,25]
[{"$f":"Tabel2[[#This Row],[datum]]","v":"2023-04-01"},"2023-04-01","massage rug",null,null,null,35]
[{"$f":"Tabel2[[#This Row],[datum]]","v":"2023-04-01"},"2023-04-01","pedicure",null,null,null,25]
[{"$f":"Tabel2[[#This Row],[datum]]","v":"2023-04-01"},"2023-04-01","epilatie wenkbrauwen",null,null,null,11]
[{"$f":"Tabel2[[#This Row],[datum]]","v":"2023-04-01"},"2023-04-01","gelaatsverzorging",null,null,null,50]
[{"$f":"Tabel2[[#This Row],[datum]]","v":"2023-04-01"},"2023-04-01","massage rug",null,null,null,35]
[{"$f":"Tabel2[[#This Row],[datum]]","v":"2023-04-01"},"2023-04-01","pedicure",null,null,null,25]
[{"$f":"Tabel2[[#This Row],[datum]]","v":"2023-04-01"},"2023-04-01","epilatie wenkbrauwen + bovenlip",null,null,null,22.5]
["2023-05-23","2023-05-03","gelnagels",39.5]
["2023-05-23","2023-05-03","pedicure + gellak",50.5]
["2023-05-23","2023-05-05","gelnagels",39.5]
["2023-05-23","2023-05-05","gelnagels",39.5]
["2023-05-23","2023-05-05","gelnagels",39.5]
["2023-05-23","2023-05-05","verkoop",null,21]
["2023-05-23","2023-05-05","rim ram",53.5]
["2023-05-23","2023-05-06","verkoop",null,21]

{"sheet":"Omzet 2023","index":1,"n_rows":31,"n_cols":15,"rows_kept":31,"cut":false,"hidden":false,"merged":[]}
[]
[]
[null,null,"Omzet",2023]
[]
[]
[null,null,{"$f":"DATE($D$3,COLUMN(A1),1)","v":"2023-01-01"},{"$f":"DATE($D$3,COLUMN(B1),1)","v":"2023-02-01"},"2023-03-01","2023-04-01","2023-05-01","2023-06-01","2023-07-01","2023-08-01","2023-09-01","2023-10-01","2023-11-01","2023-12-01","SOM"]
[]
[null,"Behandelingen",1618.5,1975.5,{"$f":"'Dagontvangsten Maart 23 '!C83","v":1646},{"$f":"'Dagontvangsten April 23'!C96","v":2066},{"$f":"SUMIFS(Tabel2[Behandeling],Tabel2[datum],\">=\"&'Omzet 2023'!G6,Tabel2[datum],\"<\"&'Omzet 2023'!H6)+SUMIFS(Tabel2[Behandeling2],Tabel2[datum],\">=\"&'Omzet 2023'!G6,Tabel2[datum],\"<\"&'Omzet 2023'!H6)","v":262},{"$f":"SUMIFS(Tabel2[Behandeling],Tabel2[datum],\">=\"&'Omzet 2023'!H6,Tabel2[datum],\"<\"&'Omzet 2023'!I6)+SUMIFS(Tabel2[Behandeling2],Tabel2[datum],\">=\"&'Omzet 2023'!H6,Tabel2[datum],\"<\"&'Omzet 2023'!I6)","v":0},{"$f":"SUMIFS(Tabel2[Behandeling],Tabel2[datum],\">=\"&'Omzet 2023'!I6,Tabel2[datum],\"<\"&'Omzet 2023'!J6)+SUMIFS(Tabel2[Behandeling2],Tabel2[datum],\">=\"&'Omzet 2023'!I6,Tabel2[datum],\"<\"&'Omzet 2023'!J6)","v":0},{"$f":"SUMIFS(Tabel2[Behandeling],Tabel2[datum],\">=\"&'Omzet 2023'!J6,Tabel2[datum],\"<\"&'Omzet 2023'!K6)+SUMIFS(Tabel2[Behandeling2],Tabel2[datum],\">=\"&'Omzet 2023'!J6,Tabel2[datum],\"<\"&'Omzet 2023'!K6)","v":0},{"$f":"SUMIFS(Tabel2[Behandeling],Tabel2[datum],\">=\"&'Omzet 2023'!K6,Tabel2[datum],\"<\"&'Omzet 2023'!L6)+SUMIFS(Tabel2[Behandeling2],Tabel2[datum],\">=\"&'Omzet 2023'!K6,Tabel2[datum],\"<\"&'Omzet 2023'!L6)","v":0},{"$f":"SUMIFS(Tabel2[Behandeling],Tabel2[datum],\">=\"&'Omzet 2023'!L6,Tabel2[datum],\"<\"&'Omzet 2023'!M6)+SUMIFS(Tabel2[Behandeling2],Tabel2[datum],\">=\"&'Omzet 2023'!L6,Tabel2[datum],\"<\"&'Omzet 2023'!M6)","v":0},{"$f":"SUMIFS(Tabel2[Behandeling],Tabel2[datum],\">=\"&'Omzet 2023'!M6,Tabel2[datum],\"<\"&'Omzet 2023'!N6)+SUMIFS(Tabel2[Behandeling2],Tabel2[datum],\">=\"&'Omzet 2023'!M6,Tabel2[datum],\"<\"&'Omzet 2023'!N6)","v":0},null,{"$f":"SUM(C8:N8)","v":7568}]
[null,"Verkoop producten",352,273,{"$f":"'Dagontvangsten Maart 23 '!D83","v":377},{"$f":"'Dagontvangsten April 23'!D96","v":97},null,null,null,null,null,null,null,null,{"$f":"SUM(C9:N9)","v":1099}]
[]
[null,"Kathelijn factuurbedrag",281.14999999999998,509.41,483.22,870.48,null,null,null,null,null,null,null,null,{"$f":"SUM(C11:N11)","v":2144.2600000000002}]
[null,"Kathelijn behandelingen (100%)",432.53,771.01,{"$f":"'Dagontvangsten Maart 23 '!F83","v":715},{"$f":"'Dagontvangsten April 23'!F96","v":1326.5},{"$f":"SUMIFS(Tabel2[Behandeling2],Tabel2[datum],\">=\"&'Omzet 2023'!G6,Tabel2[datum],\"<\"&'Omzet 2023'!H6)","v":0},null,null,null,null,null,{"$f":"SUMIFS(Tabel2[Behandeling2],Tabel2[datum],\">=\"&'Omzet 2023'!M6,Tabel2[datum],\"<\"&'Omzet 2023'!N6)","v":0},null,{"$f":"SUM(C12:N12)","v":3245.04}]
[null,"Kathelijn verkoop producten  (100%)",null,55,{"$f":"'Dagontvangsten Maart 23 '!G83","v":122.5},{"$f":"'Dagontvangsten April 23'!G96","v":55}]
[null,"Verschil",{"$f":"C12-C11-C13","v":151.38},{"$f":"D12-D11-D13","v":206.59999999999997},109.27999999999997,401.02,{"$f":"G12+G13-G11","v":0},0,0,0,0,0,null,0,{"$f":"SUM(C14:N14)","v":868.28}]
[]
[null,"Maandelijks totaal",{"$f":"C8+C9+C12+C13","v":2403.0299999999997},{"$f":"D8+D9+D12+D13","v":3074.51},2860.5,3544.5,262,0,0,0,0,0,0,0]
[]
[null,"Totaal",{"$f":"C16","v":2403.0299999999997},{"$f":"C18+D16","v":5477.54},{"$f":"D18+E16","v":8338.0400000000009},11882.54,12144.54,12144.54,12144.54,12144.54,12144.54,12144.54,12144.54,12144.54,{"$f":"N18","v":12144.54}]
[null,null,null,null,null,null,null,{"$f":"IF(H8>0,H12/H8,\"\")","v":""},"","","","",""]
[]
[null,"Overige",null,null,1005,1050]
[null,"Totaal",null,null,{"$f":"E18+E21","v":9343.0400000000009},{"$f":"F18+F21","v":12932.54},{"$f":"F22+G21","v":12932.54},{"$f":"G22+H21","v":12932.54},12932.54,12932.54,12932.54,12932.54,12932.54,12932.54,{"$f":"N22","v":12932.54}]
[]
[]
[]
[]
[]
[null,"Kathelijn ->   65%  behandelingen en  15%  verkoop producten."]
[]
[]
[null,"Totaal = behandelingen + verkoop producten + Kathelijn behandelingen + Kathelijn verkoop producten"]

{"sheet":"Data","index":2,"n_rows":37,"n_cols":7,"rows_kept":37,"cut":false,"hidden":false,"merged":[]}
["omschrijving",null,null,"namen",null,"producten"]
["cadeaubon",null,null,"Karen",null,"handcreme",21.5]
["epilatie bovenlip",13.5,null,"Kathelijn",null,"bodycreme",21]
["epilatie kin",13.5,null,null,null,"bodypeeling",31]
["epilatie oksels",15.5,null,null,null,"cadaubon"]
["epilatie wangen",13.5,null,null,null,"verkoop"]
["epilatie wenkbrauwen",12.5]
["gelaatsverzorging basis",55]
["gelaatsverzorging mini",40]
["gelaatsverzoring luxe",80]
["gellak",30.5]
["gelnagels",39.5]
["gelnagels verlenging",51.5]
["make up",30]
["manicure",27.5]
["manicure + lakken",38]
["manicure luxe",40]
["manicure luxe + lakken",38]
["massage rug en nek",35]
["massage volledige lichaam",65]
["microdermabrasie basis",70]
["microdermabrasie kort",53]
["microdermabrasie kuurverzorging",280]
["microdermabrasie uitgebreid",100]
["ontharing benen volledig",34]
["ontharing bikinilijn",16.5]
["ontharing bikinilijn volledig",22]
["ontharing borstkas",29.5]
["ontharing onderbenen/armen",24]
["ontharing rug",29.5]
["pedicure",27.5]
["pedicure + gellak",50.5]
["pedicure + lakken",38]
["reparatie teennagel",9.5]
["verven wimpers / wenkbrauwen",14]
["verwenarrangement voeten",78]
["rim ram"]

{"sheet":"samenvatting","index":3,"n_rows":22,"n_cols":7,"rows_kept":22,"cut":false,"hidden":false,"merged":[]}
[null,"Behandeling Karen","Producten Karen","Inlevering cadeau Karen","Behandeling Kathelijn","Producten Kathelijn","Inlevering cadeau Kathelijn"]
["cadeaubon",50]
["epilatie bovenlip",null,null,null,46]
["epilatie oksels",null,null,null,28]
["epilatie wenkbrauwen",null,null,null,44]
["epilatie wenkbrauwen + bovenlip",null,null,null,22.5]
["gelaatsverzorging",null,null,null,250]
["gelaatsverzorging + microdermabrasie",null,null,null,130]
["gellak",28.5,null,null,28.5]
["gelnagels",346.5]
["inleveren cadeaubon",null,null,60]
["kleuren wenkbrauw",null,null,null,12]
["luxe microdermabrasie + epilatie ",null,null,null,106.5]
["massage rug",null,null,null,140]
["oksels",14]
["pedicure",100,null,null,425]
["pedicure ",25]
["pedicure + gellak",188,null,null,94]
["rim ram",1314]
["verkoop",null,97,null,null,55]
["(leeg)"]
["Eindtotaal",2066,97,60,1326.5,55]

{"sheet":"Dagontvangsten Januari 23 ","index":4,"n_rows":61,"n_cols":8,"rows_kept":61,"cut":false,"hidden":false,"merged":[[3,0,3,7],[5,2,5,4],[5,5,5,7],[6,2,6,4],[6,5,6,7]]}
[]
[]
["2023-01-01"]
["DAGONTVANGSTEN"]
[]
[null,null,"KAREN",null,null,"KATHELIJN"]
["Datum","Omschrijving","Kostprijs",null,null,"Kostprijs"]
[null,null,"Behandeling","Producten","Inlevering cadeaubon","Behandeling","Producten","Inlevering cadeaubon"]
["2023-01-04","gelnagels",38.5]
[null,"rim ram",71]
[null,"gelnagels",38.5]
[null,"inleveren cadeaubon",null,null,33]
[null,"gelnagels",38.5]
[null,"verkoop",null,42]
["2023-01-06","verkoop",null,14]
["2023-01-07","rim ram",86.5]
[null,"rim ram",45]
[null,"verkoop",null,21]
[null,"inleveren cadeaubon",null,null,32]
["2023-01-11","gellak",28.5]
[null,"pedicure",25]
[null,"pedicure",25]
[null,"rim ram",108]
[null,"gelnagels",38.5]
["2023-01-13","gelnagels",40.5]
[null,"rim ram",68.5]
[null,"rim ram",70]
[null,"gelnagels",38.5]
[null,"rim ram",59]
[null,"pedicure",25]
[null,"gelnagels",38.5]
[null,"gelnagels",38.5]
["2023-01-18","rim ram",58]
[null,"verkoop",null,56.5]
[null,"pedicure",25]
[null,"gelnagels",38.5]
["2023-01-20","rim ram",91.5]
[null,"gelnagels",38.5]
[null,"verkoop",null,14.5]
[null,"verkoop",null,30]
["2023-01-21","verkoop",null,54]
[null,"inleveren cadeaubon",null,null,95]
[null,"verkoop",null,66]
[null,"rim ram",60]
["2023-01-25","rim ram",33]
[null,"pedicure",25]
[null,"pedicure + gellak",47]
[null,"rim ram",29]
["2023-01-27","rim ram",127]
[null,"verkoop",null,54]
[null,"rim ram",61]
["2023-01-28","gelnagels",38.5]
[null,"pedicure",25]
[null,"inleveren cadeaubon",null,null,35]
[]
[null,"Behandelingen",null,null,null,432.53]
[]
[]
[null,"Subtotaal",{"$f":"SUM(C9:C58)","v":1618.5},{"$f":"SUM(D9:D58)","v":352},null,{"$f":"SUM(F9:F58)","v":432.53},{"$f":"SUM(G9:G58)","v":0}]
[]
[null,"Totaal",{"$f":"SUM(C59+D59+F59+G59)","v":2403.0299999999997}]

{"sheet":"Dagontvangsten Februari 23 ","index":5,"n_rows":86,"n_cols":8,"rows_kept":86,"cut":false,"hidden":false,"merged":[[3,0,3,7],[5,2,5,4],[5,5,5,7],[6,2,6,4],[6,5,6,7]]}
[]
[]
["2023-02-01"]
["DAGONTVANGSTEN"]
[]
[null,null,"KAREN",null,null,"KATHELIJN"]
["Datum","Omschrijving","Kostprijs",null,null,"Kostprijs"]
[null,null,"Behandeling","Producten","Inlevering cadeaubon","Behandeling","Producten","Inlevering cadeaubon"]
["2023-02-01","rim ram",55]
["2023-02-03","gelnagels",38.5]
[null,"verkoop",null,14.5]
[null,"verkoop",null,47]
[null,"rim ram",96]
[null,"gelnagels",38.5]
["2023-02-04","rim ram",36.5]
[null,"rim ram",61.5]
[null,"gelnagels",38.5]
[null,"rim ram",74.5]
[null,"cadeaubon",50]
[null,"rug",27]
[null,"pedicure + gellak",null,null,null,47]
[null,"ontharing onderbenen",null,null,null,22]
[null,"pedicure + gellak",null,null,null,25]
[null,"pedicure + epilatie wenkb en bovenlip",null,null,null,47.5]
[null,"mini gelaatsverzorging + ped + epilatie",null,null,null,83]
[null,"luxe gelaatsverzorging",null,null,null,95]
[null,"basis gelaatsverzorging",null,null,null,50]
[null,"no-show",null,null,null,17.5]
[null,"verkoop",null,null,null,null,55]
["2023-02-08","rim ram",122]
[null,"gelnagels",38.5]
[null,"gelnagels",38.5]
[null,"verkoop",null,8.5]
[null,"pedicure",25]
[null,"pedicure",25]
["2023-02-10","gelnagels",38.5]
[null,"verkoop",null,9.5]
[null,"verkoop",null,24]
[null,"pedicure",25]
[null,"verkoop",null,24]
[null,"pedicure",25]
[null,"verwijderen gelnagels",35]
[null,"rim ram",25]
["2023-02-11","pedicure 2x + epilatie en kleuren wenkb",null,null,null,85]
[null,"ontharing benen + epilatie wenkb",null,null,null,42]
[null,"manicure",null,null,null,25]
[null,"pedicure",null,null,null,25]
[null,"pedicure",null,null,null,25]
[null,"pedicure",null,null,null,25]
["2023-02-16","verkoop",null,40]
["2023-02-17","verkoop",null,55]
[null,"rim ram",48]
[null,"rim ram",34]
[null,"luxe micro",95]
["2023-02-18","pedicure",25]
["2023-02-22","rim ram",108]
[null,"rim ram",79]
[null,"gelnagels",38.5]
["2023-02-24","rim ram",158.5]
[null,"gelnagels",38.5]
[null,"gelnagels",38.5]
["2023-02-25","inleveren cadeaubon",null,null,22]
[null,"gelnagels",38.5]
[null,"rim ram",18]
[null,"gelnagels",38.5]
[null,"rim ram",60]
[null,"pedicure",null,null,null,25]
[null,"pedicure + manicure + lakken",null,null,null,57]
[null,"pedicure",null,null,null,25]
[null,"pedicure",null,null,null,25]
[null,"pedicure",null,null,null,25]
["2023-02-26","inleveren cadeaubon",null,null,30]
[null,"pedicure + lakken",35]
[null,"rim ram",59]
[null,"rim ram",41]
[null,"verkoop",null,50.5]
[null,"rim ram",55]
[null,"pedicure",25]
[null,"rim ram",29]
[]
[]
[]
[]
[null,"Subtotaal",{"$f":"SUM(C9:C83)","v":1975.5},{"$f":"SUM(D9:D83)","v":273},null,{"$f":"SUM(F9:F83)","v":771},{"$f":"SUM(G9:G83)","v":55}]
[]
[null,"Totaal",{"$f":"SUM(C84+D84+F84+G84)","v":3074.5}]

{"sheet":"Dagontvangsten Maart 23 ","index":6,"n_rows":85,"n_cols":8,"rows_kept":85,"cut":false,"hidden":false,"merged":[[3,0,3,7],[5,2,5,4],[5,5,5,7],[6,2,6,4],[6,5,6,7]]}
[]
[]
["2023-03-01"]
["DAGONTVANGSTEN"]
[]
[null,null,"KAREN",null,null,"KATHELIJN"]
["Datum","Omschrijving","Kostprijs",null,null,"Kostprijs"]
[null,null,"Behandeling","Producten","Inlevering cadeaubon","Behandeling","Producten","Inlevering cadeaubon"]
["2023-03-03","rim ram",133.5]
[null,"gelnagels",38.5]
[null,"verkoop",null,40]
[null,"verkoop",null,41.5]
[null,"gelnagels",38.5]
["2023-03-04","verkoop",null,52]
[null,"verkoop",null,50.5]
[null,"rim ram",61.5]
["2023-03-08","pedicure",25]
["2023-03-10","rim ram",57]
[null,"rim ram",67]
[null,"pedicure + gellak",47]
[null,"pedicure",25]
[null,"verkoop",null,14.5]
[null,"pedicure",25]
[null,"gelnagels",38.5]
["2023-03-11","rim ram",36.5]
[null,"gelaatsverzorging",50]
[null,"rim ram",45]
[null,"pedicure",null,null,null,25]
[null,"luxe gelaatverzorging + microdermabrasie",null,null,null,95]
[null,"epilatie wenkbrauw + kleuren",null,null,null,23]
[null,"epilatie wenkbrauw ",null,null,null,11]
[null,"verkoop",null,null,null,null,55]
[null,"verkoop",null,null,null,null,50]
["2023-03-15","gelnagels",38.5]
[null,"gelnagels",38.5]
[null,"gelnagels",38.5]
[null,"rim ram",34]
[null,"rim ram",42]
["2023-03-17","pedicure + gellak",47]
[null,"gelnagels",38.5]
[null,"gelnagels",38.5]
["2023-03-18","pedicure",null,null,null,25]
[null,"epilatie wenkbrauwen + bovenlip",null,null,null,22.5]
[null,"pedicure",null,null,null,25]
[null,"pedicure",null,null,null,25]
[null,"epilatie wenkbrauwen + kleuren",null,null,null,35]
[null,"epilatie wenkbrauwen",null,null,null,11]
[null,"pedicure",null,null,null,25]
[null,"epilatie onderbenen",null,null,null,22]
[null,"pedicure",null,null,null,25]
[null,"epilatie wenkbrauwen",null,null,null,11]
[null,"verkoop",null,null,null,null,17.5]
["2023-03-22","pedicure + gellak",47]
[null,"oksels",14]
["2023-03-23","Verkoop",null,53.5]
["2023-03-24","gelnagels",38.5]
[null,"gelnagels",38.5]
[null,"verwijderen gel",35]
[null,"verkoop",null,45]
["2023-03-25","rim ram",82]
[null,"rim ram",84]
[null,"mini gelaatsverzorging",null,null,null,35]
[null,"kleuren wenkbrauwen",null,null,null,12]
[null,"pedicure",null,null,null,25]
[null,"pedicure",null,null,null,25]
[null,"massage rug",null,null,null,35]
[null,"pedicure + gellak",null,null,null,47]
[null,"epilatie onderbenen",null,null,null,22]
[null,"pedicure + gellak",null,null,null,47]
[null,"epilatie wenkbrauwen + bovenlip",null,null,null,22.5]
[null,"epilatie oksels",null,null,null,14]
[null,"pedicure",null,null,null,25]
[null,"pedicure",null,null,null,25]
["2023-03-29","verkoop",null,25]
[null,"rim ram",92]
[null,"rim ram",33]
[null,"verkoop",null,55]
[null,"rim ram",48]
["2023-03-31","gelnagels",38.5]
[null,"rim ram",65]
[null,"rug",27]
[]
[null,"Subtotaal",{"$f":"SUM(C9:C82)","v":1646},{"$f":"SUM(D9:D82)","v":377},null,{"$f":"SUM(F9:F82)","v":715},{"$f":"SUM(G9:G82)","v":122.5}]
[]
[null,"Totaal",{"$f":"SUM(C83+D83+F83+G83)","v":2860.5}]

{"sheet":"Dagontvangsten April 23","index":7,"n_rows":98,"n_cols":8,"rows_kept":98,"cut":false,"hidden":false,"merged":[[3,0,3,7],[5,2,5,4],[5,5,5,7],[6,2,6,4],[6,5,6,7]]}
[]
[]
["2023-04-01"]
["DAGONTVANGSTEN"]
[]
[null,null,"KAREN",null,null,"KATHELIJN"]
["Datum","Omschrijving","Kostprijs",null,null,"Kostprijs"]
[null,null,"Behandeling","Producten","Inlevering cadeaubon","Behandeling","Producten","Inlevering cadeaubon"]
["2023-04-01","rim ram",108]
[null,"rim ram",45]
[null,"rim ram",36.5]
[null,"gellak",null,null,null,28.5]
[null,"pedicure",null,null,null,25]
[null,"massage rug",null,null,null,35]
[null,"pedicure",null,null,null,25]
[null,"epilatie wenkbrauwen",null,null,null,11]
[null,"gelaatsverzorging",null,null,null,50]
[null,"massage rug",null,null,null,35]
[null,"pedicure",null,null,null,25]
[null,"epilatie wenkbrauwen + bovenlip",null,null,null,22.5]
["2023-04-08","massage rug",null,null,null,35]
[null,"epilatie wenkbrauwen",null,null,null,11]
[null,"pedicure",null,null,null,25]
[null,"gelaatsverzorging",null,null,null,50]
[null,"gelaatsverzorging + microdermabrasie",null,null,null,65]
[null,"pedicure",null,null,null,25]
[null,"pedicure",null,null,null,25]
[null,"pedicure",null,null,null,25]
[null,"pedicure + gellak",null,null,null,47]
[null,"verkoop",null,null,null,null,55]
["2023-04-12","cadeaubon",50]
[null,"gelnagels",38.5]
[null,"gelnagels",38.5]
[null,"rim ram",84.5]
[null,"pedicure + gellak",47]
[null,"gelnagels",38.5]
[null,"pedicure ",25]
[null,"rim ram",29]
[null,"pedicure",25]
["2023-04-14","verkoop",null,55]
[null,"rim ram",59]
["2023-04-15","rim ram",171]
[null,"pedicure",25]
[null,"gelnagels",38.5]
[null,"rim ram",71]
[null,"massage rug",null,null,null,35]
[null,"gelaatsverzorging",null,null,null,50]
[null,"epilatie bovenlip",null,null,null,11.5]
[null,"pedicure",null,null,null,25]
[null,"gelaatsverzorging + microdermabrasie",null,null,null,65]
[null,"kleuren wenkbrauw",null,null,null,12]
[null,"pedicure",null,null,null,25]
[null,"pedicure",null,null,null,25]
[null,"epilatie wenkbrauwen",null,null,null,11]
[null,"epilatie bovenlip",null,null,null,11.5]
[null,"epilatie oksels",null,null,null,14]
[null,"gelaatsverzorging",null,null,null,50]
[null,"epilatie bovenlip",null,null,null,11.5]
[null,"gelaatsverzorging",null,null,null,50]
[null,"epilatie bovenlip",null,null,null,11.5]
[null,"pedicure",null,null,null,25]
["2023-04-19","rim ram",23]
[null,"gelnagels",38.5]
[null,"gellak",28.5]
[null,"rim ram",58]
[null,"rim ram",45.5]
[null,"inleveren cadeaubon",null,null,60]
[null,"verkoop",null,42]
[null,"rim ram",55]
["2023-04-21","rim ram",45]
[null,"pedicure + gellak",47]
[null,"pedicure",25]
[null,"gelnagels",38.5]
[null,"gelnagels",38.5]
["2023-04-22","oksels",14]
[null,"gelnagels",38.5]
[null,"rim ram",177]
[null,"pedicure + gellak",47]
[null,"pedicure",25]
["2023-04-26","rim ram",73.5]
[null,"rim ram",131]
[null,"rim ram",69]
[null,"rim ram",33]
[null,"pedicure + gellak",47]
[null,"gelnagels",38.5]
["2023-04-29","pedicure",null,null,null,25]
[null,"pedicure",null,null,null,25]
[null,"pedicure",null,null,null,25]
[null,"epilatie wenkbrauwen",null,null,null,11]
[null,"pedicure",null,null,null,25]
[null,"epilatie oksels",null,null,null,14]
[null,"pedicure",null,null,null,25]
[null,"luxe microdermabrasie + epilatie ",null,null,null,106.5]
[null,"pedicure + gellak",null,null,null,47]
[null,"pedicure",null,null,null,25]
[null,"Subtotaal",{"$f":"SUM(C9:C93)","v":2066},{"$f":"SUM(D9:D93)","v":97},null,{"$f":"SUM(F9:F95)","v":1326.5},{"$f":"SUM(G9:G93)","v":55}]
[]
[null,"Totaal",{"$f":"SUM(C96+D96+F96+G96)","v":3544.5}]

{"sheet":"Blanco sjabloon dagontvansten","index":8,"n_rows":6,"n_cols":8,"rows_kept":6,"cut":false,"hidden":false,"merged":[[1,0,1,7],[3,2,3,4],[3,5,3,7],[4,2,4,4],[4,5,4,7]]}
["2023-05-01"]
["PURE - DAGONTVANGSTEN"]
[]
[null,null,"KAREN",null,null,"KATHELIJN"]
["Datum","Omschrijving","Kostprijs",null,null,"Kostprijs"]
[null,null,"Behandeling","Producten","Inlevering cadeaubon","Behandeling","Producten","Inlevering cadeaubon"]